fUST/lending_fUST_20240121
["ID","MTS","AMOUNT","RATE_DAILY","PERIOD"]
[312343995,1705804252357,-500.0,0.00030684,2]
[312343996,1705804252366,-1456.84,0.00030684,2]
[312343997,1705804252376,-500.0,0.00030684,2]
[312343998,1705804252386,-500.0,0.00030684,2]
[312343999,1705804252395,-9762.94,0.00030684,2]
[312344000,1705804252405,-500.0,0.00030684,2]
[312344001,1705804252414,-500.0,0.00030684,2]
[312344002,1705804252423,-1357.4,0.00030684,2]
[312344003,1705804252433,-500.0,0.00030684,2]
[312344004,1705804252442,-500.0,0.00030684,2]
[312344005,1705804252451,-3282.85,0.00030684,2]
[312344006,1705804252460,-16364.87,0.00030684,2]
[312344007,1705804252469,-500.0,0.00030684,2]
[312344008,1705804252478,-500.0,0.00030684,2]
[312344009,1705804252487,-500.0,0.00030684,2]
[312344010,1705804252497,-500.0,0.00030684,2]
[312344011,1705804252506,-1247.45,0.00030684,2]
[312344012,1705804252516,-8946.16,0.00030684,2]
[312344013,1705804252525,-1251.27,0.00030684,2]
[312344014,1705804252534,-500.0,0.00030684,2]
[312344015,1705804252544,-500.0,0.00030684,2]
[312344016,1705804252553,-500.0,0.00030684,2]
[312344017,1705804252562,-500.0,0.00030684,2]
[312344018,1705804252571,-1134.91,0.00030684,2]
[312344019,1705804252581,-500.0,0.00030684,2]
[312344020,1705804252590,-2475.04,0.00030684,2]
[312344021,1705804252599,-6222.0,0.00030684,2]
[312344022,1705804252609,-533.93406896,0.00030684,2]
[312344023,1705804252619,-500.0,0.00030684,2]
[312344024,1705804252628,-512.02,0.00030684,2]
[312344025,1705804252716,-500.0,0.00030684,2]
[312344026,1705804252726,-500.0,0.00030684,2]
[312344027,1705804252736,-500.0,0.00030684,2]
[312344028,1705804252746,-8892.79,0.00030684,2]
[312344029,1705804252755,-1000.0,0.00030684,2]
[312344030,1705804252765,-500.0,0.00030684,2]
[312344031,1705804252775,-500.0,0.00030684,2]
[312344032,1705804252783,-500.0,0.00030684,2]
[312344033,1705804252793,-500.0,0.00030684,2]
[312344034,1705804252802,-500.0,0.00030684,2]
[312344035,1705804252812,-500.0,0.00030684,2]
[312344036,1705804252821,-2386.41,0.00030684,2]
[312344037,1705804252831,-501.71720028,0.00030684,2]
[312344038,1705804252840,-500.0,0.00030684,2]
[312344039,1705804252849,-1658.71,0.00030684,2]
[312344040,1705804252858,-500.0,0.00030684,2]
[312344041,1705804252868,-500.0,0.00030684,2]
[312344042,1705804252877,-883.01,0.00030684,2]
[312344043,1705804252887,-500.0,0.00030684,2]
[312344044,1705804252896,-500.0,0.00030684,2]
[312344045,1705804252905,-500.0,0.00030684,2]
[312344046,1705804252915,-217.58022648,0.00030684,2]
[312344047,1705804252924,-500.0,0.00030684,2]
[312344048,1705804252934,-500.0,0.00030684,2]
[312344049,1705804252944,-500.0,0.00030684,2]
[312344050,1705804252953,-500.0,0.00030684,2]
[312344051,1705804252963,-1168.08,0.00030684,2]
[312344052,1705804252972,-500.0,0.00030684,2]
[312344053,1705804252982,-500.0,0.00030684,2]
[312344054,1705804252992,-500.0,0.00030684,2]
[312344055,1705804253002,-500.0,0.00030684,2]
[312344056,1705804253011,-502.32093715,0.00030684,2]
[312344057,1705804253021,-1669.28,0.00030684,2]
[312344058,1705804253030,-1398.43,0.00030684,2]
[312344059,1705804253039,-500.0,0.00030684,2]
[312344060,1705804253050,-500.0,0.00030684,2]
[312344061,1705804253059,-500.0,0.00030684,2]
[312344062,1705804253069,-685.83,0.00030684,2]
[312344063,1705804253078,-500.0,0.00030684,2]
[312344064,1705804253087,-500.0,0.00030684,2]
[312344065,1705804253097,-500.0,0.00030684,2]
[312344066,1705804253107,-545.75,0.00030684,2]
[312344067,1705804253116,-500.0,0.00030684,2]
[312344068,1705804253126,-1242.73,0.00030684,2]
[312344069,1705804253135,-1931.87,0.00030684,2]
[312344070,1705804253146,-500.0,0.00030684,2]
[312344071,1705804253155,-500.0,0.00030684,2]
[312344072,1705804253164,-500.0,0.00030684,2]
[312344073,1705804253173,-500.0,0.00030684,2]
[312344074,1705804253183,-500.0,0.00030684,2]
[312344075,1705804253192,-151.0,0.00030684,2]
[312344076,1705804253201,-151.91199,0.00030684,2]
[312344077,1705804253211,-2610.873502,0.00030684,2]
[312344078,1705804253220,-2610.873502,0.00030684,2]
[312344079,1705804253230,-2610.873502,0.00030684,2]
[312344080,1705804253238,-2610.873502,0.00030684,2]
[312344082,1705804253248,-2610.873502,0.00030684,2]
[312344083,1705804253257,-2610.873502,0.00030684,2]
[312344084,1705804253266,-2610.873502,0.00030684,2]
[312344085,1705804253275,-2610.873502,0.00030684,2]
[312344087,1705804253284,-151.0,0.00030684,2]
[312344088,1705804253294,-151.0,0.00030684,2]
[312344089,1705804253303,-151.0,0.00030684,2]
[312344090,1705804253312,-173.15813,0.00030684,2]
[312344091,1705804253321,-151.0,0.00030757,2]
[312344092,1705804253330,-500.0,0.00030957,2]
[312344093,1705804253340,-1339.6,0.00030957,2]
[312344094,1705804253349,-1339.6,0.00030957,2]
[312344096,1705804253359,-1339.6,0.00030957,2]
[312344097,1705804253368,-1339.6,0.00030957,2]
[312344098,1705804253383,-500.0,0.00030958,2]
[312344099,1705804253401,-500.0,0.00030958,2]
[312344100,1705804253411,-500.0,0.00030958,2]
[312344101,1705804253421,-500.0,0.00030958,2]
[312344102,1705804253430,-500.0,0.00030958,2]
[312344103,1705804253439,-500.0,0.00030958,2]
[312344104,1705804253449,-738.79,0.00030958,2]
[312344105,1705804253458,-500.0,0.00030958,2]
[312344106,1705804253467,-500.0,0.00030958,2]
[312344107,1705804253479,-563.30871317,0.00030958,2]
[312344108,1705804253488,-596.3317369,0.00030958,2]
[312344109,1705804253498,-500.0,0.00030958,2]
[312344110,1705804253508,-502.39572461,0.00030958,2]
[312344111,1705804253518,-368.94436176,0.00030958,2]
[312344112,1705804253527,-500.0,0.00030958,2]
[312344113,1705804253537,-847.4,0.00030958,2]
[312344114,1705804253546,-500.0,0.00030958,2]
[312344115,1705804253555,-500.0,0.00030958,2]
[312344116,1705804253565,-500.0,0.00030958,2]
[312344117,1705804253575,-522.09,0.00030958,2]
[312344118,1705804253583,-500.0,0.00030958,2]
[312344119,1705804253592,-500.0,0.00030958,2]
[312344120,1705804253602,-500.0,0.00030958,2]
[312344121,1705804253611,-500.0,0.00030958,2]
[312344122,1705804253621,-500.0,0.00030958,2]
[312344123,1705804253630,-646.16,0.00030958,2]
[312344124,1705804253640,-500.0,0.00030958,2]
[312344125,1705804253649,-500.0,0.00030958,2]
[312344126,1705804253663,-500.0,0.00030958,2]
[312344127,1705804253672,-500.0,0.00030958,2]
[312344128,1705804253682,-1000.0,0.00030958,2]
[312344129,1705804253691,-500.0,0.00030958,2]
[312344130,1705804253702,-500.0,0.00030958,2]
[312344131,1705804253711,-500.0,0.00030958,2]
[312344132,1705804253720,-500.0,0.00030958,2]
[312344133,1705804253730,-721.39,0.00030958,2]
[312344134,1705804253739,-377.5790184,0.00030958,2]
[312344135,1705804253749,-500.0,0.00030958,2]
[312344136,1705804253759,-500.0,0.00030958,2]
[312344137,1705804253768,-625.7,0.00030958,2]
[312344138,1705804253778,-500.0,0.00030958,2]
[312344139,1705804253788,-500.0,0.00030958,2]
[312344140,1705804253798,-500.0,0.00030958,2]
[312344141,1705804253807,-500.0,0.00030958,14]
[312344142,1705804253817,-701.62,0.00030958,2]
[312344143,1705804253826,-781.93,0.00030958,2]
[312344144,1705804253836,-500.0,0.00030958,2]
[312344145,1705804253845,-200.0,0.00030958,2]
[312344146,1705804253855,-506.69811154,0.00030958,2]
[312344147,1705804253864,-500.0,0.00030958,2]
[312344148,1705804253873,-715.02,0.00030958,2]
[312344149,1705804253883,-500.0,0.00030958,2]
[312344150,1705804253891,-1014.44387761,0.00030958,2]
[312344151,1705804253900,-500.0,0.00030958,2]
[312344152,1705804253909,-500.0,0.00030958,2]
[312344153,1705804253919,-1450.97,0.00030958,2]
[312344154,1705804253928,-500.0,0.00030958,2]
[312344155,1705804253938,-544.74,0.00030958,2]
[312344156,1705804253947,-500.0,0.00030958,2]
[312344157,1705804253957,-500.0,0.00030958,2]
[312344158,1705804253966,-500.0,0.00030958,2]
[312344159,1705804253975,-500.0,0.00030958,2]
[312344160,1705804253985,-500.0,0.00030958,2]
[312344161,1705804253994,-500.0,0.00030958,2]
[312344162,1705804254003,-500.0,0.00030958,2]
[312344163,1705804254013,-512.54465079,0.00030958,2]
[312344164,1705804254022,-500.0,0.00030958,2]
[312344165,1705804254032,-520.63,0.00030958,2]
[312344166,1705804254041,-500.0,0.00030958,2]
[312344167,1705804254051,-500.0,0.00030958,2]
[312344168,1705804254061,-529.72,0.00030958,2]
[312344169,1705804254144,-500.0,0.00030958,2]
[312344170,1705804254154,-500.0,0.00030958,2]
[312344171,1705804254163,-714.99,0.00030958,2]
[312344172,1705804254172,-500.0,0.00030958,2]
[312344173,1705804254181,-1000.0,0.00030958,2]
[312344174,1705804254192,-500.0,0.00030958,2]
[312344175,1705804254201,-163.8931268,0.00030958,2]
[312344176,1705804254210,-462.70107331,0.00030958,2]
[312344177,1705804254219,-500.0,0.00030958,2]
[312344178,1705804254228,-150.0,0.00030958,2]
[312344179,1705804254237,-561.16464898,0.00030958,2]
[312344180,1705804254247,-707.13,0.00030958,2]
[312344181,1705804254256,-500.0,0.00030958,2]
[312344182,1705804254265,-730.31,0.00030958,2]
[312344183,1705804254275,-704.33,0.00030958,2]
[312344184,1705804254284,-500.0,0.00030958,2]
[312344185,1705804254293,-500.0,0.00030958,2]
[312344186,1705804254303,-500.0,0.00030958,2]
[312344187,1705804254312,-359.42921145,0.00030958,2]
[312344188,1705804254322,-500.0,0.00030958,2]
[312344189,1705804254331,-745.35,0.00030958,2]
[312344190,1705804254341,-554.88569224,0.00030958,2]
[312344191,1705804254350,-716.14,0.00030958,2]
[312344192,1705804254359,-1216.48,0.00030958,2]
[312344193,1705804254369,-500.0,0.00030958,2]
[312344194,1705804254378,-500.0,0.00030958,2]
[312344195,1705804254387,-324.23899013,0.00030958,2]
[312344196,1705804254396,-500.0,0.00030958,2]
[312344197,1705804254406,-498.83019286,0.00030958,2]
[312344198,1705804254415,-500.0,0.00030958,2]
[312344199,1705804254424,-593.86,0.00030958,2]
[312344200,1705804254433,-500.0,0.00030958,2]
[312344201,1705804254443,-500.0,0.00030958,7]
[312344202,1705804254452,-544.65,0.00030958,2]
[312344203,1705804254461,-500.0,0.00030958,2]
[312344204,1705804254470,-950.15,0.00030958,2]
[312344205,1705804254479,-730.6,0.00030958,2]
[312344206,1705804254488,-500.0,0.00030958,2]
[312344207,1705804254497,-2439.78,0.00030958,2]
[312344208,1705804254506,-279.40130134,0.00030958,2]
[312344209,1705804254515,-500.0,0.00030958,2]
[312344210,1705804254524,-500.0,0.00030958,2]
[312344211,1705804254534,-500.0,0.00030958,2]
[312344212,1705804254543,-3321.44,0.00030958,2]
[312344213,1705804254552,-1034.37542522,0.00030958,2]
[312344214,1705804254562,-500.0,0.00030958,2]
[312344215,1705804254571,-500.0,0.00030958,2]
[312344216,1705804254581,-500.0,0.00030958,2]
[312344217,1705804254590,-500.0,0.00030958,2]
[312344218,1705804254599,-1699.49,0.00030958,2]
[312344219,1705804254608,-500.0,0.00030958,2]
[312344220,1705804254618,-500.0,0.00030958,2]
[312344221,1705804254627,-261.70582474,0.00030958,2]
[312344222,1705804254636,-500.0,0.00030958,2]
[312344223,1705804254645,-500.0,0.00030958,2]
[312344224,1705804254655,-500.0,0.00030958,2]
[312344225,1705804254670,-1131.27,0.00030958,2]
[312344226,1705804254679,-504.61396894,0.00030958,2]
[312344227,1705804254689,-500.0,0.00030958,2]
[312344228,1705804254698,-220.4614793,0.00030958,2]
[312344229,1705804254708,-500.0,0.00030958,2]
[312344230,1705804254718,-500.0,0.00030958,2]
[312344231,1705804254727,-1634.2,0.00030958,2]
[312344232,1705804254737,-500.0,0.00030958,2]
[312344233,1705804254747,-523.29,0.00030958,2]
[312344234,1705804254756,-849.47,0.00030958,2]
[312344235,1705804254773,-858.39,0.00030958,2]
[312344236,1705804254791,-909.28,0.00030958,2]
[312344237,1705804254806,-936.38,0.00030958,2]
[312344238,1705804254823,-500.0,0.00030958,2]
[312344239,1705804254841,-500.0,0.00030958,2]
[312344240,1705804254856,-763.2,0.00030958,2]
[312344241,1705804254871,-500.0,0.00030958,2]
[312344242,1705804254887,-1518.96,0.00030958,2]
[312344243,1705804254904,-992.59,0.00030958,2]
[312344244,1705804254922,-500.0,0.00030958,2]
[312344245,1705804254938,-2702.41,0.00030958,2]
[312344246,1705804254953,-1007.33,0.00030958,2]
[312344247,1705804254971,-739.04,0.00030958,2]
[312344248,1705804254986,-827.46,0.00030958,2]
[312344249,1705804254999,-500.0,0.00030958,2]
[312344250,1705804255017,-500.0,0.00030958,2]
[312344251,1705804255028,-500.0,0.00030958,2]
[312344252,1705804255043,-500.0,0.00030958,2]
[312344253,1705804255056,-2297.91,0.00030958,2]
[312344254,1705804255070,-1389.68,0.00030958,2]
[312344255,1705804255086,-504.58949916,0.00030958,2]
[312344256,1705804255100,-500.0,0.00030958,2]
[312344257,1705804255113,-500.0,0.00030958,2]
[312344258,1705804255128,-28045.32,0.00030958,2]
[312344259,1705804255142,-617.22,0.00030958,2]
[312344260,1705804255157,-2205.96,0.00030958,2]
[312344261,1705804255171,-6455.87,0.00030958,2]
[312344262,1705804255184,-500.0,0.00030958,2]
[312344263,1705804255197,-500.0,0.00030958,2]
[312344264,1705804255211,-500.0,0.00030958,2]
[312344265,1705804255224,-500.0,0.00030958,2]
[312344266,1705804255237,-500.0,0.00030958,2]
[312344267,1705804255250,-1168.22,0.00030958,2]
[312344268,1705804255264,-500.0,0.00030958,2]
[312344269,1705804255278,-509.63,0.00030958,2]
[312344270,1705804255291,-500.0,0.00030958,2]
[312344271,1705804255304,-1456.84,0.00030958,2]
[312344272,1705804255318,-500.0,0.00030958,2]
[312344273,1705804255332,-171.16187186,0.00030958,2]
[312344274,1705804255345,-9762.94,0.00030958,2]
[312344275,1705804255359,-500.0,0.00030958,2]
[312344276,1705804255371,-500.0,0.00030958,2]
[312344277,1705804255384,-1357.4,0.00030958,2]
[312344278,1705804255397,-500.0,0.00030958,2]
[312344279,1705804255410,-505.59783466,0.00030958,2]
[312344280,1705804255424,-3282.85,0.00030958,2]
[312344281,1705804255437,-16364.87,0.00030958,2]
[312344282,1705804255450,-500.0,0.00030958,2]
[312344283,1705804255464,-500.0,0.00030958,2]
[312344284,1705804255477,-500.0,0.00030958,2]
[312344285,1705804255490,-500.0,0.00030958,2]
[312344286,1705804255503,-1247.45,0.00030958,2]
[312344287,1705804255515,-8946.16,0.00030958,2]
[312344288,1705804255524,-1251.27,0.00030958,2]
[312344289,1705804255534,-500.0,0.00030958,2]
[312344290,1705804255543,-500.0,0.00030958,2]
[312344291,1705804255554,-500.0,0.00030958,2]
[312344292,1705804255563,-500.0,0.00030958,2]
[312344293,1705804255572,-1134.91,0.00030958,2]
[312344294,1705804255582,-500.0,0.00030958,2]
[312344295,1705804255591,-2475.04,0.00030958,2]
[312344296,1705804255601,-6222.0,0.00030958,2]
[312344297,1705804255610,-234.44431672,0.00030958,2]
[312344298,1705804255620,-512.02,0.00030958,2]
[312344299,1705804255778,-500.0,0.00030958,2]
[312344300,1705804255798,-500.0,0.00030958,2]
[312344301,1705804255809,-500.0,0.00030958,2]
[312344302,1705804255819,-8892.79,0.00030958,2]
[312344303,1705804255828,-1000.0,0.00030958,2]
[312344304,1705804255838,-500.0,0.00030958,2]
[312344305,1705804255847,-526.31782774,0.00030958,2]
[312344306,1705804255856,-500.0,0.00030958,2]
[312344307,1705804255866,-500.0,0.00030958,2]
[312344308,1705804255875,-500.0,0.00030958,2]
[312344309,1705804255885,-500.0,0.00030958,2]
[312344310,1705804255894,-2386.41,0.00030958,2]
[312344311,1705804255903,-500.0,0.00030958,2]
[312344312,1705804255912,-1658.71,0.00030958,2]
[312344313,1705804255922,-425.81095081,0.00030958,2]
[312344314,1705804255931,-500.0,0.00030958,2]
[312344315,1705804255940,-883.01,0.00030958,2]
[312344316,1705804255949,-500.0,0.00030958,2]
[312344317,1705804255958,-500.0,0.00030958,2]
[312344318,1705804255967,-500.0,0.00030958,2]
[312344319,1705804255979,-500.0,0.00030958,2]
[312344320,1705804255989,-500.0,0.00030958,2]
[312344321,1705804255999,-500.0,0.00030958,2]
[312344322,1705804256008,-500.0,0.00030958,2]
[312344323,1705804256018,-1168.08,0.00030958,2]
[312344324,1705804256028,-500.0,0.00030958,2]
[312344325,1705804256037,-500.0,0.00030958,2]
[312344326,1705804256047,-500.0,0.00030958,2]
[312344327,1705804256057,-500.0,0.00030958,2]
[312344328,1705804256066,-1669.28,0.00030958,2]
[312344329,1705804256076,-1398.43,0.00030958,2]
[312344330,1705804256085,-500.0,0.00030958,2]
[312344331,1705804256094,-500.0,0.00030958,2]
[312344332,1705804256103,-500.0,0.00030958,2]
[312344333,1705804256113,-685.83,0.00030958,2]
[312344334,1705804256122,-470.11053392,0.00030958,2]
[312344335,1705804256131,-500.0,0.00030958,2]
[312344336,1705804256140,-500.0,0.00030958,2]
[312344337,1705804256149,-545.75,0.00030958,2]
[312344338,1705804256158,-391.90982317,0.00030958,2]
[312344339,1705804256167,-1242.73,0.00030958,2]
[312344340,1705804256176,-1931.87,0.00030958,2]
[312344341,1705804256185,-500.0,0.00030958,2]
[312344342,1705804256193,-500.0,0.00030958,2]
[312344343,1705804256202,-500.0,0.00030958,2]
[312344344,1705804256212,-500.0,0.00030958,2]
[312344345,1705804256221,-500.0,0.00030958,2]
[312344346,1705804256230,-2610.873502,0.00030958,2]
[312344347,1705804256238,-2610.873502,0.00030958,2]
[312344348,1705804256248,-2610.873502,0.00030958,2]
[312344349,1705804256260,-2610.873502,0.00030958,2]
[312344350,1705804256270,-2610.873502,0.00030958,2]
[312344351,1705804256280,-2610.873502,0.00030958,2]
[312344352,1705804256290,-2610.873502,0.00030958,2]
[312344353,1705804256301,-2610.873502,0.00030958,2]
[312344354,1705804256310,-150.5,0.0003097,30]
[312344355,1705804256319,-150.5,0.0003098,30]
[312344356,1705804256330,-163.68735223,0.00030989,2]
[312344357,1705804256340,-150.5,0.0003099,30]
[312344358,1705804256349,-500.0,0.00030999,2]
[312344359,1705804256358,-1339.6,0.00030999,2]
[312344360,1705804256367,-2416.34338556,0.00031,2]
[312344370,1705804313452,-204.0,0.00023999,2]
[312344373,1705804416112,-154.73694719,0.00027119,4]
[312344374,1705804436025,154.73694719,0.00027121,4]
[312344375,1705804458031,154.73694719,0.00027121,4]
[312344376,1705804482029,154.73694719,0.00027121,4]
[312344377,1705804504029,154.73694719,0.00027121,4]
[312344378,1705804520024,154.73694719,0.00027121,4]
[312344379,1705804542034,154.73694719,0.00027121,4]
[312344380,1705804560035,154.73694719,0.00027121,4]
[312344381,1705804576042,154.73694719,0.00027121,4]
[312344382,1705804594041,154.73694719,0.00027121,4]
[312344383,1705804612039,154.73694719,0.00027121,4]
[312344384,1705804632047,154.73694719,0.00027121,4]
[312344410,1705804717937,-154.73694719,0.00027102,4]
[312344428,1705804728547,154.73694719,0.00027121,4]
[312344429,1705804754549,154.73694719,0.00027121,4]
[312344431,1705804772554,154.73694719,0.00027121,4]
[312344434,1705804794558,154.73694719,0.00027121,4]
[312344437,1705804808678,154.73694719,0.00027121,4]
[312344441,1705804830556,154.73694719,0.00027121,4]
[312344444,1705804837291,830.0,0.0002,2]
[312344446,1705804846555,140.84136967,0.00027121,4]
[312344452,1705804880436,-5200.0,0.0002,2]
[312344454,1705804910132,-154.73694719,0.00019997,3]
[312344455,1705804910158,-50.26305281,0.00019997,2]
[312344456,1705804992275,-154.73694719,0.00017998,3]
[312344457,1705805009075,154.73694719,0.00017998,3]
[312344458,1705805025103,154.73694719,0.00017998,3]
[312344459,1705805043071,154.73694719,0.00017998,3]
[312344460,1705805067099,154.73694719,0.00017998,3]
[312344461,1705805083073,154.73694719,0.00017998,3]
[312344462,1705805107078,154.73694719,0.00017998,3]
[312344463,1705805115290,260.71552206,0.00017991,7]
[312344464,1705805121190,1471.4232892,0.00014999,2]
[312344465,1705805131078,154.73694719,0.00017998,3]
[312344466,1705805149814,154.73694719,0.00017998,3]
[312344467,1705805167081,154.73694719,0.00017998,3]
[312344468,1705805185088,154.73694719,0.00017998,3]
[312344469,1705805207095,154.73694719,0.00017998,3]
[312344470,1705805212090,-313.35633134,0.00017987,2]
[312344471,1705805227093,154.73694719,0.00017998,3]
[312344472,1705805230080,-560.83092663,0.00017987,2]
[312344473,1705805230102,-555.24243185,0.00017987,2]
[312344474,1705805230123,-1065.63361868,0.00017988,2]
[312344475,1705805245090,154.73694719,0.00017998,3]
[312344476,1705805251141,-3476.8094143,0.00018997,2]
[312344477,1705805251161,-3903.14968106,0.00018998,2]
[312344478,1705805251181,-3159.41025091,0.0001999,3]
[312344479,1705805261098,154.73694719,0.00017998,3]
[312344480,1705805279294,154.73694719,0.00017998,3]
[312344481,1705805295216,154.73694719,0.00017998,3]
[312344482,1705805315104,154.73694719,0.00017998,3]
[312344483,1705805329701,-260.35384667,0.00019999,7]
[312344484,1705805333105,154.73694719,0.00017998,3]
[312344485,1705805351107,154.73694719,0.00017998,3]
[312344488,1705805362598,2000.0,0.0001999,3]
[312344489,1705805367109,154.73694719,0.00017998,3]
[312344491,1705805391107,154.73694719,0.00017998,3]
[312344492,1705805407107,154.73694719,0.00017998,3]
[312344493,1705805427115,154.73694719,0.00017998,3]
[312344510,1705805432392,164.30666586,0.00019999,90]
[312344531,1705805432745,-2995.49,0.0001999,3]
[312344532,1705805432754,-2496.24,0.0001999,3]
[312344533,1705805432763,-2080.2,0.0001999,3]
[312344534,1705805432772,-3476.8094143,0.00019997,2]
[312344535,1705805432781,-2102.94542064,0.00019998,2]
[312344537,1705805432791,-154.73694719,0.00019998,2]
[312344539,1705805432799,-154.73694719,0.00019998,2]
[312344541,1705805432809,-2034.18918627,0.00019998,2]
[312344543,1705805432818,-876.22858684,0.00019998,2]
[312344545,1705805432827,-266.72273755,0.00019998,2]
[312344547,1705805432837,-631.93801947,0.00019998,2]
[312344549,1705805432846,-82898.56663028,0.0002,2]
[312344590,1705805438757,-17536.43336972,0.0002,2]
[312344591,1705805438767,-678.4765603,0.0002,2]
[312344592,1705805438776,-24900.0,0.00020476,2]
[312344593,1705805438785,-181.772261,0.00021918,2]
[312344594,1705805438795,-200.0,0.00021988,7]
[312344595,1705805438804,-293.77731603,0.00022,4]
[312344596,1705805438814,-4013.17086376,0.00024,2]
[312344597,1705805438823,-280.0,0.00024187,7]
[312344598,1705805438832,-181.772261,0.00024482,2]
[312344599,1705805438842,-1046.11952043,0.00025,2]
[312344600,1705805438863,-237.57908484,0.00025,2]
[312344601,1705805438885,-391.0,0.00026605,15]
[312344602,1705805438908,-352.02951025,0.000274,2]
[312344603,1705805438930,-328.47589033,0.00027934,2]
[312344604,1705805438953,-153.0,0.00028556,2]
[312344605,1705805438976,-164.81728099,0.00028667,2]
[312344606,1705805438993,-168.43144,0.00028767,2]
[312344607,1705805439003,-218.19058137,0.00028858,2]
[312344608,1705805439012,-155.0,0.00029136,2]
[312344609,1705805439022,-200.0,0.00029266,15]
[312344610,1705805439032,-348.0,0.00029266,15]
[312344611,1705805439046,-579.1473729,0.00029833,2]
[312344612,1705805439056,-1200.0,0.0003,4]
[312344613,1705805439066,-688.33469937,0.0003,4]
[312344614,1705805439075,-464.55162265,0.0003,2]
[312344615,1705805439086,-244.10022188,0.0003,4]
[312344616,1705805439095,-154.73694719,0.0003,4]
[312344617,1705805439104,-197.0,0.0003,2]
[312344618,1705805439114,-292.10906799,0.00030036,3]
[312344619,1705805439125,-742.19377108,0.00030134,4]
[312344620,1705805439135,-2320.42125945,0.00030134,2]
[312344621,1705805439145,-227.6194853,0.00030134,4]
[312344622,1705805439155,-314.1231325,0.00030134,4]
[312344623,1705805439166,-155.09769188,0.00030134,4]
[312344624,1705805439175,-277.23266737,0.00030134,30]
[312344625,1705805439185,-271.523746,0.00030134,4]
[312344626,1705805439195,-1289.8209237,0.00030135,4]
[312344627,1705805439205,-1076.80949215,0.00030135,4]
[312344628,1705805439217,-285.64650192,0.00030135,4]
[312344629,1705805439226,-414.63174221,0.00030135,3]
[312344630,1705805439237,-500.0,0.00030135,2]
[312344631,1705805439246,-500.0,0.00030135,2]
[312344632,1705805439256,-516.63860937,0.00030135,2]
[312344633,1705805439265,-500.0,0.00030135,2]
[312344634,1705805439276,-500.0,0.00030135,2]
[312344635,1705805439286,-500.0,0.00030135,2]
[312344636,1705805439295,-500.0,0.00030135,2]
[312344637,1705805439304,-389.26327185,0.00030135,2]
[312344638,1705805439314,-500.0,0.00030135,2]
[312344639,1705805439323,-500.0,0.00030135,2]
[312344640,1705805439333,-572.88345049,0.00030135,2]
[312344641,1705805439342,-175.88943691,0.00030135,2]
[312344642,1705805439351,-595.82347601,0.00030135,2]
[312344643,1705805439360,-500.0,0.00030135,2]
[312344644,1705805439369,-500.0,0.00030135,2]
[312344645,1705805439379,-500.0,0.00030135,2]
[312344646,1705805439388,-500.0,0.00030135,2]
[312344647,1705805439397,-421.67063442,0.00030135,2]
[312344648,1705805439406,-500.0,0.00030135,2]
[312344649,1705805439415,-500.0,0.00030135,2]
[312344650,1705805439424,-500.0,0.00030135,2]
[312344651,1705805439432,-500.0,0.00030135,2]
[312344652,1705805439441,-500.0,0.00030135,2]
[312344653,1705805439450,-500.0,0.00030135,2]